bitfinex/quotes_BTCUSD_20241119
["timestamp","ask_amount","ask_price","bid_price","bid_amount"]
[1732035291372,0.108154,92460.0,92459.0,0.11077215]
[1732035292081,0.118154,92460.0,92459.0,0.0017096]
[1732035294318,0.108154,92460.0,92459.0,0.0017096]
[1732035294524,0.118154,92460.0,92459.0,0.0017096]
[1732035296555,0.218154,92460.0,92459.0,0.0017096]
[1732035296998,0.298954,92460.0,92459.0,0.0017096]
[1732035297453,0.218154,92460.0,92459.0,0.0017096]
[1732035298347,0.118154,92460.0,92459.0,0.0017096]
[1732035299236,0.029154,92460.0,92459.0,0.0017096]
[1732035299522,0.01,92460.0,92459.0,0.0017096]
[1732035299746,0.118154,92460.0,92459.0,0.0017096]
[1732035303622,0.1190104,92460.0,92459.0,0.0017096]
[1732035305060,0.3587104,92460.0,92459.0,0.0017096]
[1732035305509,0.1190104,92460.0,92459.0,0.0017096]
[1732035306658,0.0008564,92460.0,92459.0,0.0017096]
[1732035306891,0.0008564,92460.0,92459.0,0.21892815]
[1732035307374,0.108141,92472.0,92467.0,0.01]
[1732035307605,0.1253832,92487.0,92467.0,0.01]
[1732035307849,0.108132,92480.0,92467.0,0.01]
[1732035308073,0.12565079,92487.0,92473.0,0.01]
[1732035308302,0.216248,92486.0,92468.0,0.10906255]
[1732035308525,0.12565079,92487.0,92473.0,0.01]
[1732035308738,0.108131,92480.0,92473.0,0.01]
[1732035308948,0.108129,92482.0,92473.0,0.01]
[1732035309168,0.16909223,92487.0,92473.0,0.215464]
[1732035309375,0.16909223,92487.0,92478.0,0.108133]
[1732035309582,0.108124,92486.0,92477.0,0.118134]
[1732035309763,0.1,92491.0,92477.0,0.01]
[1732035310023,0.216241,92489.0,92477.0,0.01]
[1732035310279,0.108135,92477.0,92470.0,0.01]
[1732035310490,0.12565079,92487.0,92470.0,0.01]
[1732035310714,0.12565079,92487.0,92475.0,0.108136]
[1732035310940,0.108127,92484.0,92475.0,0.108136]
[1732035311189,0.108128,92483.0,92475.0,0.108137]
[1732035311420,0.324377,92485.0,92473.0,0.205465]
[1732035311634,0.108126,92485.0,92475.0,0.108136]
[1732035312084,0.12565079,92487.0,92479.0,0.108132]
[1732035312311,0.216239,92490.0,92477.0,0.01]
[1732035312539,0.108122,92488.0,92479.0,0.108132]
[1732035312761,0.108122,92488.0,92480.0,0.108131]
[1732035313213,0.216239,92490.0,92478.0,0.0817]
[1732035313490,0.216239,92490.0,92471.0,0.205469]
[1732035313491,0.10906255,92490.0,92463.0,0.01]
[1732035313716,0.12565079,92485.0,92466.0,0.01]
[1732035313935,0.216241,92490.0,92471.0,0.01]
[1732035314164,0.0756,92492.0,92475.0,0.01]
[1732035314394,0.0756,92492.0,92475.0,0.11906255]
[1732035314395,0.216237,92491.0,92475.0,0.11906255]
[1732035314633,0.216237,92491.0,92469.0,0.216288]
[1732035314634,0.108121,92489.0,92480.0,0.10813]
[1732035314890,0.108122,92488.0,92481.0,0.10813]
[1732035315106,0.108123,92487.0,92479.0,0.20186255]
[1732035315351,0.04435882,92493.0,92481.0,0.21626]
[1732035315352,0.0008564,92485.0,92481.0,0.21626]
[1732035315533,0.0008564,92485.0,92484.0,0.108126]
[1732035316250,0.0008564,92485.0,92484.0,0.00156926]
[1732035316924,0.0008564,92485.0,92484.0,0.10969526]
[1732035317156,0.0008564,92485.0,92484.0,0.22875781]
[1732035318090,0.0008564,92485.0,92484.0,0.23875781]
[1732035319247,0.0008564,92485.0,92484.0,0.33735781]
[1732035320156,0.0008564,92485.0,92484.0,0.38675781]
[1732035320646,0.0008564,92485.0,92484.0,0.37675781]
[1732035320874,0.0008564,92485.0,92484.0,0.36375781]
[1732035321585,0.0008564,92485.0,92484.0,0.38675781]
[1732035322024,0.0008564,92485.0,92484.0,0.36375781]
[1732035325760,0.0008564,92485.0,92484.0,0.38675781]
[1732035327148,0.0008564,92485.0,92484.0,0.38847001]
[1732035328516,0.0008564,92485.0,92484.0,0.43202288]
[1732035329021,0.0008564,92485.0,92484.0,0.54202288]
[1732035329248,0.0008564,92485.0,92484.0,0.55202288]
[1732035329468,0.0826,92536.0,92517.0,0.01]
[1732035329694,0.108075,92529.0,92517.0,0.11906255]
[1732035329917,0.0826,92536.0,92518.0,0.216174]
[1732035330134,0.12541141,92536.0,92519.0,0.216171]
[1732035330371,0.108077,92527.0,92520.0,0.108083]
[1732035330589,0.216149,92529.0,92519.0,0.108085]
[1732035330590,0.108078,92526.0,92519.0,0.108085]
[1732035331022,0.108081,92523.0,92517.0,0.10906255]
[1732035331244,0.108079,92525.0,92518.0,0.108086]
[1732035331466,0.1,92535.0,92519.0,0.108085]
[1732035331467,0.216136,92534.0,92519.0,0.108085]
[1732035331697,0.108078,92526.0,92519.0,0.108085]
[1732035331884,0.216152,92528.0,92517.0,0.11906255]
[1732035332176,0.1,92535.0,92512.0,0.01]
[1732035332384,0.216175,92518.0,92509.0,0.108097]
[1732035332650,0.108089,92516.0,92510.0,0.108095]
[1732035332879,0.108089,92516.0,92507.0,0.226198]
[1732035332880,0.108084,92520.0,92519.0,0.03]
[1732035333125,0.0826,92536.0,92519.0,0.03]
[1732035333360,0.04404497,92529.0,92521.0,0.108082]
[1732035333563,0.108078,92526.0,92521.0,0.108082]
[1732035334011,0.12565079,92533.0,92519.0,0.03]
[1732035334251,0.1,92532.0,92519.0,0.03]
[1732035334464,0.108073,92530.0,92524.0,0.108079]
[1732035334680,0.108078,92526.0,92519.0,0.03]
[1732035334890,0.324214,92531.0,92521.0,0.108083]
[1732035335099,0.108078,92526.0,92520.0,0.108084]
[1732035335470,0.108077,92527.0,92520.0,0.108084]
[1732035335886,0.14383442,92535.0,92519.0,0.03]
[1732035336092,0.316139,92533.0,92519.0,0.03]
[1732035336289,0.1,92533.0,92519.0,0.03]
[1732035336491,0.108073,92530.0,92519.0,0.03]
[1732035336728,0.1,92533.0,92519.0,0.03]
[1732035336729,0.108084,92520.0,92519.0,0.03]
[1732035336938,0.23373479,92520.0,92519.0,0.03]
[1732035337312,0.108084,92520.0,92519.0,0.03]
[1732035337514,0.108084,92521.0,92519.0,0.03]
[1732035337715,0.1,92533.0,92519.0,0.03]
[1732035338056,0.108084,92520.0,92519.0,0.03]
[1732035338480,0.432282,92532.0,92519.0,0.03]
[1732035338705,0.14301867,92533.0,92519.0,0.0317116]
[1732035338913,0.108079,92525.0,92519.0,0.0317116]
[1732035339096,0.0008558,92522.0,92519.0,0.0317116]
[1732035339678,0.108084,92520.0,92519.0,0.0317116]
[1732035339877,0.1089388,92522.0,92519.0,0.0317116]
[1732035340074,0.108084,92521.0,92519.0,0.0317116]
[1732035340681,0.0008558,92522.0,92519.0,0.0317116]
[1732035340878,0.108084,92520.0,92519.0,0.0317116]
[1732035341414,0.0008558,92522.0,92519.0,0.0317116]
[1732035341784,0.04432623,92522.0,92519.0,0.0317116]
[1732035342167,0.1089378,92522.0,92519.0,0.0317116]
[1732035342376,0.108084,92520.0,92519.0,0.0317116]
[1732035343477,0.0008558,92522.0,92519.0,0.0317116]
[1732035343478,0.1089388,92522.0,92519.0,0.0317116]
[1732035343921,0.1089388,92522.0,92519.0,0.0017116]
[1732035344182,0.0008558,92522.0,92519.0,0.0017116]
[1732035344423,0.108084,92521.0,92519.0,0.0017116]
[1732035344630,0.04336955,92527.0,92519.0,0.0017116]
[1732035344832,0.108084,92520.0,92519.0,0.0017116]
[1732035345033,0.34178779,92534.0,92519.0,0.0017116]
[1732035345034,0.108082,92523.0,92519.0,0.0017116]
[1732035345319,0.108083,92521.0,92519.0,0.0017116]
[1732035345524,0.108084,92520.0,92519.0,0.0017116]
[1732035351384,0.10317014,92520.0,92519.0,0.0017116]
[1732035354688,0.216164,92522.0,92519.0,0.0017116]
[1732035354689,0.108082,92522.0,92519.0,0.0017116]
[1732035354899,0.15185556,92523.0,92519.0,0.0017116]
[1732035355105,0.15185456,92523.0,92519.0,0.0017116]
[1732035355340,0.108084,92521.0,92519.0,0.0017116]
[1732035356018,0.36801856,92523.0,92519.0,0.0017116]
[1732035356240,0.108084,92521.0,92519.0,0.0017116]
[1732035356474,0.15185456,92523.0,92519.0,0.0017116]
[1732035356741,0.108082,92522.0,92519.0,0.0017116]
[1732035356970,0.108084,92521.0,92519.0,0.0017116]
[1732035357428,0.25993756,92523.0,92519.0,0.0017116]
[1732035357842,0.04377356,92523.0,92519.0,0.0017116]
[1732035358055,0.0008558,92523.0,92519.0,0.1097966]
[1732035358885,0.0008558,92523.0,92519.0,0.0017116]
[1732035359106,0.0008558,92523.0,92519.0,0.1097956]
[1732035359329,0.216148,92529.0,92519.0,0.0017116]
[1732035359534,0.108079,92525.0,92519.0,0.0017116]
[1732035359737,0.108077,92527.0,92519.0,0.1097966]
[1732035359963,0.216147,92530.0,92519.0,0.0017116]
[1732035360178,0.10808,92524.0,92519.0,0.0017116]
[1732035360389,0.108081,92523.0,92519.0,0.0017116]
[1732035360613,0.108079,92525.0,92519.0,0.0017116]
[1732035361052,0.108081,92523.0,92519.0,0.0017116]
[1732035361268,0.04424782,92532.0,92519.0,0.0017116]
[1732035361475,0.216148,92529.0,92519.0,0.0017116]
[1732035361686,0.10808,92524.0,92519.0,0.0017116]
[1732035362150,0.216153,92527.0,92519.0,0.0017116]
[1732035362371,0.108077,92526.0,92519.0,0.0017116]
[1732035362819,0.21615,92528.0,92519.0,0.1097966]
[1732035363035,0.108078,92526.0,92519.0,0.1097966]
[1732035363529,0.216141,92532.0,92519.0,0.0017116]
[1732035363759,0.108078,92526.0,92519.0,0.0017116]
[1732035363990,0.1433047,92533.0,92520.0,0.11906255]
[1732035363991,0.0433047,92533.0,92520.0,0.11906255]
[1732035364202,0.0433047,92533.0,92532.0,0.10807]
[1732035364424,0.1,92551.0,92529.0,0.01]
[1732035364621,0.1,92551.0,92535.0,0.216132]
[1732035364622,0.04391773,92539.0,92535.0,0.216132]
[1732035364823,0.108057,92544.0,92536.0,0.108065]
[1732035365034,0.216101,92549.0,92529.0,0.11906255]
[1732035365254,0.261886,92556.0,92529.0,0.11906255]
[1732035365464,0.261886,92556.0,92519.0,0.09832556]
[1732035365465,0.05496976,92550.0,92532.0,0.216141]
[1732035365706,0.108048,92552.0,92536.0,0.01]
[1732035365926,0.216095,92552.0,92538.0,0.216125]
[1732035366363,0.216095,92552.0,92542.0,0.108058]
[1732035366364,0.108049,92551.0,92542.0,0.108058]
[1732035366585,0.108049,92551.0,92538.0,0.216125]
[1732035366586,0.108049,92551.0,92543.0,0.108057]
[1732035366792,0.216095,92552.0,92538.0,0.216125]
[1732035367031,0.216095,92552.0,92543.0,0.108057]
[1732035367032,0.108049,92551.0,92543.0,0.108057]
[1732035367231,0.108049,92550.0,92543.0,0.108057]
[1732035367910,0.216095,92552.0,92542.0,0.108058]
[1732035368125,0.108051,92549.0,92540.0,0.199179]
[1732035368336,0.216099,92550.0,92541.0,0.108059]
[1732035368541,0.108051,92549.0,92542.0,0.108058]
[1732035368765,0.216098,92551.0,92537.0,0.11906255]
[1732035368981,0.0008557,92553.0,92538.0,0.108063]
[1732035369191,0.216099,92550.0,92539.0,0.108061]
[1732035369412,0.216099,92550.0,92537.0,0.11906255]
[1732035369413,0.108053,92547.0,92540.0,0.108061]
[1732035369695,0.108049,92550.0,92546.0,0.03]
[1732035369918,0.216097,92551.0,92546.0,0.03]
[1732035370135,0.108052,92548.0,92546.0,0.03]
[1732035370572,0.0008557,92553.0,92546.0,0.03]
[1732035370785,0.108048,92552.0,92546.0,0.138053]
[1732035371079,0.0008557,92553.0,92548.0,0.108051]
[1732035371307,0.0008557,92553.0,92551.0,0.108047]
[1732035371729,0.0008557,92553.0,92548.0,0.10906255]
[1732035371932,0.0008557,92553.0,92550.0,0.108049]
[1732035372363,0.0008557,92553.0,92548.0,0.10906255]
[1732035372660,0.0008557,92553.0,92548.0,0.21711355]
[1732035372888,0.216084,92557.0,92549.0,0.216101]
[1732035372889,0.108041,92557.0,92549.0,0.216101]
[1732035373115,0.108041,92557.0,92551.0,0.108047]
[1732035373345,0.1,92559.0,92553.0,0.108045]
[1732035373583,0.04408879,92560.0,92548.0,0.11906255]
[1732035373812,0.04408879,92560.0,92553.0,0.108045]
[1732035374041,0.108037,92561.0,92553.0,0.108045]
[1732035374264,0.019037,92561.0,92553.0,0.108045]
[1732035374482,0.21607,92563.0,92553.0,0.108045]
[1732035374965,0.17006867,92567.0,92549.0,0.32516355]
[1732035374966,0.1,92565.0,92549.0,0.10906255]
[1732035375194,0.208033,92565.0,92552.0,0.216094]
[1732035375408,0.04452358,92567.0,92554.0,0.01]
[1732035375638,0.04452358,92567.0,92552.0,0.01]
[1732035375639,0.04452358,92567.0,92565.0,0.108032]
[1732035375854,0.216044,92574.0,92566.0,0.10803]
[1732035375855,0.108022,92574.0,92566.0,0.10803]
[1732035376154,0.05587388,92575.0,92567.0,0.108029]
[1732035376379,0.108022,92574.0,92565.0,0.324093]
[1732035376606,0.108024,92572.0,92565.0,0.108031]
[1732035376855,0.10803,92567.0,92561.0,0.0759]
[1732035377063,0.216055,92569.0,92561.0,0.0759]
[1732035377314,0.05587388,92575.0,92556.0,0.01]
[1732035377543,0.108036,92562.0,92556.0,0.01]
[1732035377788,0.216045,92573.0,92556.0,0.01]
[1732035378018,0.108036,92562.0,92556.0,0.01]
[1732035378468,0.216067,92564.0,92556.0,0.01]
[1732035378703,0.216076,92560.0,92556.0,0.01]
[1732035378953,0.216076,92560.0,92545.0,0.0784]
[1732035378954,0.10805,92550.0,92545.0,0.0784]
[1732035379163,0.108047,92553.0,92549.0,0.01]
[1732035379376,0.216083,92557.0,92549.0,0.01]
[1732035379613,0.108043,92555.0,92554.0,0.03]
[1732035380947,0.216083,92557.0,92554.0,0.03]
[1732035381184,0.04288577,92557.0,92554.0,0.03]
[1732035381415,0.108043,92555.0,92554.0,0.03]
[1732035382775,0.216076,92560.0,92535.0,0.0475]
[1732035383005,0.1,92567.0,92536.0,0.10906255]
[1732035383220,0.04346533,92560.0,92536.0,0.10906255]
[1732035383444,0.216073,92562.0,92536.0,0.10906255]
[1732035383911,0.1,92567.0,92537.0,0.216129]
[1732035384124,0.108044,92555.0,92548.0,0.108051]
[1732035384344,0.1,92567.0,92538.0,0.10906255]
[1732035384345,0.1,92565.0,92538.0,0.10906255]
[1732035384564,0.216064,92565.0,92538.0,0.10906255]
[1732035384774,0.216066,92564.0,92548.0,0.108051]
[1732035384989,0.108044,92555.0,92548.0,0.108051]
[1732035385641,0.108045,92554.0,92548.0,0.108051]
[1732035385870,0.216085,92556.0,92542.0,0.0787]
[1732035386095,0.108049,92551.0,92546.0,0.10906255]
[1732035386351,0.1,92567.0,92546.0,0.10906255]
[1732035386574,0.216081,92558.0,92546.0,0.10906255]
[1732035386782,0.108045,92554.0,92547.0,0.108052]
[1732035386987,0.1,92565.0,92546.0,0.10906255]
[1732035387228,0.1,92563.0,92547.0,0.108052]
[1732035387456,0.108044,92555.0,92548.0,0.108051]
[1732035387680,0.108044,92555.0,92546.0,0.10906255]
[1732035387681,0.108043,92556.0,92547.0,0.216105]
[1732035387904,0.316065,92565.0,92546.0,0.10906255]
[1732035387905,0.108041,92557.0,92550.0,0.108048]
[1732035388128,0.1,92565.0,92547.0,0.216106]
[1732035388337,0.10804,92559.0,92549.0,0.324151]
[1732035388596,0.216069,92563.0,92552.0,0.108046]
[1732035388831,0.1,92566.0,92552.0,0.108046]
[1732035388832,0.108039,92559.0,92554.0,0.108044]
[1732035389040,0.10804,92558.0,92552.0,0.108046]
[1732035389259,0.2273245,92575.0,92554.0,0.0787]
[1732035389475,0.0008557,92578.0,92556.0,0.216085]
[1732035389701,0.216038,92576.0,92558.0,0.21608]
[1732035389927,0.216036,92577.0,92560.0,0.216076]
[1732035390160,0.108024,92572.0,92565.0,0.108031]
[1732035390383,0.04521112,92578.0,92561.0,0.10906255]
[1732035390615,0.108024,92572.0,92566.0,0.10803]
[1732035390837,0.0008557,92578.0,92562.0,0.216071]
[1732035391045,0.108024,92572.0,92564.0,0.108032]
[1732035391277,0.108024,92572.0,92565.0,0.108032]
[1732035391539,0.108025,92571.0,92564.0,0.108032]
[1732035391973,0.216038,92576.0,92547.0,0.0806]
[1732035392183,0.34147797,92576.0,92547.0,0.0806]
[1732035392437,0.216052,92570.0,92549.0,0.216099]
[1732035392647,0.108038,92560.0,92549.0,0.216099]
[1732035392868,0.12543997,92576.0,92549.0,0.216099]
[1732035393087,0.108038,92560.0,92552.0,0.216094]
[1732035393552,0.108038,92560.0,92553.0,0.108045]
[1732035394215,0.216066,92564.0,92552.0,0.108046]
[1732035394456,0.216055,92569.0,92549.0,0.216099]
[1732035394674,0.108038,92560.0,92553.0,0.108045]
[1732035394887,0.05459658,92580.0,92553.0,0.216091]
[1732035395146,0.1008552,92587.0,92554.0,0.10906255]
[1732035395406,0.04428177,92578.0,92567.0,0.108029]
[1732035395616,0.10802,92575.0,92562.0,0.21607]
[1732035395829,0.10802,92575.0,92563.0,0.10906255]
[1732035396033,0.108022,92574.0,92565.0,0.108031]
[1732035396244,0.216036,92577.0,92566.0,0.10803]
[1732035396460,0.108022,92574.0,92563.0,0.10906255]
[1732035396691,0.0008557,92578.0,92563.0,0.10906255]
[1732035396922,0.0008557,92578.0,92565.0,0.1237]
[1732035397141,0.0002817,92578.0,92577.0,0.108018]
[1732035397353,0.0002817,92578.0,92566.0,0.10906255]
[1732035397579,0.0002817,92578.0,92574.0,0.10906255]
[1732035397802,0.0002817,92578.0,92577.0,0.108018]
[1732035398323,0.0002817,92578.0,92576.0,0.108019]
[1732035398544,0.0002817,92578.0,92551.0,0.13543997]
[1732035398771,0.0002817,92578.0,92567.0,0.108029]
[1732035398772,0.108019,92576.0,92567.0,0.108029]
[1732035398982,0.0002817,92578.0,92569.0,0.108027]
[1732035399191,0.0002817,92578.0,92569.0,0.10906255]
[1732035399907,0.108018,92577.0,92569.0,0.21708955]
[1732035400529,0.0002817,92578.0,92569.0,0.10906255]
[1732035400530,0.216039,92576.0,92569.0,0.10906255]
[1732035400968,0.0002817,92578.0,92565.0,0.1237]
[1732035401181,0.0002817,92578.0,92565.0,0.0484]
[1732035401397,0.108021,92574.0,92565.0,0.156431]
[1732035401614,0.324057,92576.0,92565.0,0.0484]
[1732035401913,0.108019,92576.0,92565.0,0.0501098]
[1732035402149,0.108021,92575.0,92567.0,0.108029]
[1732035402360,0.0002817,92578.0,92565.0,0.0501098]
[1732035402564,0.0002817,92578.0,92567.0,0.108029]
[1732035402775,0.10802,92575.0,92567.0,0.108029]
[1732035402981,0.108019,92576.0,92566.0,0.108031]
[1732035403185,0.0002817,92578.0,92565.0,0.0501098]
[1732035403814,0.216037,92577.0,92565.0,0.0501098]
[1732035404031,0.0002817,92578.0,92565.0,0.0501098]
[1732035404247,0.216022,92583.0,92571.0,0.108025]
[1732035404466,0.10104833,92589.0,92574.0,0.03]
[1732035404467,0.108019,92577.0,92574.0,0.03]
[1732035404684,0.10802,92575.0,92574.0,0.03]
[1732035406055,0.04481079,92578.0,92574.0,0.03]
[1732035406265,0.10104833,92589.0,92565.0,0.0501098]
[1732035406266,0.044105,92581.0,92565.0,0.0501098]
[1732035406478,0.044105,92581.0,92573.0,0.216043]
[1732035406686,0.10801,92584.0,92573.0,0.216044]
[1732035406893,0.108009,92585.0,92576.0,0.108019]
[1732035407774,0.108009,92585.0,92571.0,0.21605]
[1732035407980,0.216013,92587.0,92571.0,0.21605]
[1732035407981,0.108006,92587.0,92578.0,0.108016]
[1732035408198,0.10801,92584.0,92574.0,0.10802]
[1732035408429,0.10801,92584.0,92575.0,0.10802]
[1732035408642,0.216013,92587.0,92573.0,0.216045]
[1732035408875,0.108008,92586.0,92573.0,0.216045]
[1732035409105,0.216013,92587.0,92571.0,0.10906255]
[1732035409334,0.108007,92587.0,92577.0,0.108017]
[1732035409563,0.04529361,92589.0,92582.0,0.03]
[1732035409564,0.108008,92586.0,92582.0,0.03]
[1732035410007,0.108009,92585.0,92582.0,0.03]
[1732035411924,0.108007,92587.0,92582.0,0.03]
[1732035412586,0.04529361,92589.0,92582.0,0.03]
[1732035412807,0.32402,92587.0,92582.0,0.03]
[1732035413014,0.108007,92587.0,92583.0,0.1286]
[1732035413222,0.04529361,92589.0,92583.0,0.344621]
[1732035413491,0.04529361,92589.0,92583.0,0.1286]
[1732035413718,0.108006,92588.0,92583.0,0.1286]
[1732035413940,0.04614831,92589.0,92583.0,0.0485]
[1732035414186,0.108005,92588.0,92582.0,0.03]
[1732035414408,0.216013,92587.0,92582.0,0.03]
[1732035414626,0.32402,92587.0,92582.0,0.03]
[1732035415079,0.216013,92587.0,92576.0,0.0751]
[1732035415297,0.108008,92586.0,92577.0,0.108017]
[1732035416187,0.108009,92585.0,92577.0,0.108017]
[1732035416826,0.04614831,92589.0,92577.0,0.10906255]
[1732035417302,0.04614831,92589.0,92587.0,0.108006]
[1732035417581,0.04614831,92589.0,92583.0,0.10801]
[1732035417812,0.04614831,92589.0,92584.0,0.108009]
[1732035418036,0.04614831,92589.0,92585.0,0.108008]
[1732035418260,0.04614831,92589.0,92580.0,0.10906255]
[1732035418485,0.15415231,92589.0,92581.0,0.108012]
[1732035418700,0.04614831,92589.0,92580.0,0.10906255]
[1732035418933,0.15415331,92589.0,92580.0,0.10906255]
[1732035419147,0.108006,92588.0,92580.0,0.21707655]
[1732035419356,0.216003,92591.0,92577.0,0.216036]
[1732035419566,0.108003,92590.0,92581.0,0.108013]
[1732035419769,0.216006,92590.0,92576.0,0.18416255]
[1732035419972,0.108007,92586.0,92578.0,0.108017]
[1732035420196,0.108007,92586.0,92579.0,0.108015]
[1732035420417,0.108004,92589.0,92580.0,0.108014]
[1732035420650,0.216003,92591.0,92578.0,0.216034]
[1732035420873,0.216008,92589.0,92576.0,0.18416255]
[1732035421217,0.04453427,92592.0,92574.0,0.2177514]
[1732035421218,0.108013,92581.0,92574.0,0.0017094]
[1732035421335,0.0778,92592.0,92574.0,0.0017094]
[1732035421561,0.10802,92575.0,92574.0,0.0017094]
[1732035421801,0.22543997,92590.0,92574.0,0.0017094]
[1732035421802,0.216031,92579.0,92574.0,0.0017094]
[1732035422037,0.22543997,92590.0,92574.0,0.0017094]
[1732035422271,0.1,92590.0,92574.0,0.0017094]
[1732035422495,0.1,92590.0,92574.0,0.0504094]
[1732035422720,0.1,92587.0,92574.0,0.0504094]
[1732035423175,0.216015,92586.0,92574.0,0.0504094]
[1732035423386,0.108013,92582.0,92574.0,0.1584304]
[1732035423638,0.216015,92586.0,92574.0,0.0504094]
[1732035423920,0.1,92587.0,92574.0,0.0504094]
[1732035424128,0.12543997,92589.0,92574.0,0.0017094]
[1732035424350,0.1,92588.0,92574.0,0.0017094]
[1732035424587,0.10802,92575.0,92574.0,0.0017094]
[1732035425018,0.108018,92577.0,92574.0,0.0017094]
[1732035425274,0.108019,92576.0,92568.0,0.108028]
[1732035425500,0.108025,92571.0,92566.0,0.00115527]
[1732035425718,0.10802,92575.0,92574.0,0.0017094]
[1732035425933,0.108022,92574.0,92566.0,0.10918627]
[1732035426365,0.108021,92575.0,92567.0,0.108029]
[1732035426821,0.216036,92577.0,92566.0,0.00115527]
[1732035427041,0.10802,92576.0,92566.0,0.00115527]
[1732035427247,0.108022,92574.0,92566.0,0.00115527]
[1732035427505,0.10802,92575.0,92566.0,0.00115527]
[1732035427967,0.108029,92567.0,92566.0,0.00115527]
[1732035428412,0.23346897,92567.0,92566.0,0.00115527]
[1732035429319,0.33346897,92567.0,92566.0,0.00115527]
[1732035430946,0.25082277,92567.0,92566.0,0.00115527]
[1732035431367,0.15082277,92567.0,92566.0,0.00115527]
[1732035431580,0.0468,92580.0,92566.0,0.00115527]
[1732035431581,0.108021,92575.0,92566.0,0.00115527]
[1732035431806,0.02018893,92581.0,92566.0,0.00115527]
[1732035432041,0.22543997,92582.0,92566.0,0.00115527]
[1732035432042,0.108026,92571.0,92566.0,0.00115527]
[1732035432270,0.108029,92568.0,92566.0,0.00115527]
[1732035432535,0.04339002,92582.0,92566.0,0.11021782]
[1732035432772,0.0496,92596.0,92566.0,0.11021782]
[1732035432773,0.000854,92593.0,92567.0,0.10906255]
[1732035432992,0.108014,92580.0,92573.0,0.108022]
[1732035433455,0.216017,92586.0,92570.0,0.216052]
[1732035433680,0.216017,92586.0,92567.0,0.10906255]
[1732035433902,0.12543997,92590.0,92567.0,0.32512055]
[1732035434122,0.108017,92578.0,92571.0,0.108025]
[1732035434368,0.12543997,92590.0,92566.0,0.01115527]
[1732035434369,0.21603,92580.0,92566.0,0.01115527]
[1732035434588,0.108029,92567.0,92566.0,0.01115527]
[1732035434797,0.324083,92569.0,92566.0,0.01115527]
[1732035434929,0.12543997,92575.0,92566.0,0.01115527]
[1732035435142,0.1,92587.0,92566.0,0.01115527]
[1732035435369,0.108019,92576.0,92569.0,0.108026]
[1732035435600,0.0831,92589.0,92569.0,0.108027]
[1732035435601,0.108013,92582.0,92569.0,0.108027]
[1732035435825,0.1,92587.0,92569.0,0.108027]
[1732035435826,0.324022,92586.0,92571.0,0.108024]
[1732035436047,0.324022,92586.0,92566.0,0.10745808]
[1732035436048,0.216015,92586.0,92566.0,0.10745808]
[1732035436258,0.108017,92578.0,92570.0,0.108025]
[1732035436516,0.108018,92577.0,92570.0,0.108025]
[1732035436744,0.108018,92577.0,92566.0,0.01115527]
[1732035436959,0.21602,92584.0,92566.0,0.01115527]
[1732035437189,0.12738877,92589.0,92566.0,0.01115527]
[1732035437190,0.216045,92574.0,92566.0,0.01115527]
[1732035437416,0.108025,92571.0,92566.0,0.01115527]
[1732035437636,0.216024,92582.0,92566.0,0.01115527]
[1732035438075,0.04428877,92589.0,92580.0,0.01]
[1732035438309,0.0022,92596.0,92591.0,0.108001]
[1732035440519,0.0022,92596.0,92587.0,0.047]
[1732035440740,0.0022,92596.0,92584.0,0.108009]
[1732035440983,0.0022,92596.0,92581.0,0.0773]
[1732035441221,0.0022,92596.0,92578.0,0.216034]
[1732035441458,0.110196,92596.0,92581.0,0.108013]
[1732035441671,0.110196,92596.0,92577.0,0.0471]
[1732035441672,0.1088557,92592.0,92577.0,0.0471]
[1732035441893,0.0008547,92592.0,92588.0,0.108005]
[1732035442097,0.0008547,92592.0,92577.0,0.15616255]
[1732035442302,0.0008547,92592.0,92587.0,0.108006]
[1732035442515,0.0008547,92592.0,92577.0,0.15616255]
[1732035442732,0.0008547,92592.0,92591.0,0.108001]
[1732035443419,0.0008547,92592.0,92591.0,0.21706355]
[1732035443639,0.0008547,92592.0,92591.0,0.29236355]
[1732035443881,0.0008547,92592.0,92591.0,0.38859323]
[1732035444147,0.0008547,92592.0,92591.0,0.388537]
[1732035444388,0.0008547,92592.0,92591.0,0.33846355]
[1732035445482,0.0008547,92592.0,92591.0,0.21706355]
[1732035448718,0.0008547,92592.0,92591.0,0.44420735]
[1732035448922,0.0008547,92592.0,92591.0,0.54035116]
[1732035449126,0.0022,92596.0,92591.0,0.34806355]
[1732035449338,0.6322073,92600.0,92599.0,0.107992]
[1732035449533,0.6322073,92600.0,92599.0,0.21705455]
[1732035452367,0.6322073,92600.0,92588.0,0.09602154]
[1732035452610,0.6322073,92600.0,92598.0,0.107993]
[1732035453047,0.6322073,92600.0,92590.0,0.216006]
[1732035453048,0.6322073,92600.0,92599.0,0.107992]
[1732035454364,0.6322073,92600.0,92593.0,0.215996]
[1732035454593,0.6322073,92600.0,92594.0,0.10906255]
[1732035454795,0.6322073,92600.0,92590.0,0.216004]
[1732035454796,0.107992,92599.0,92590.0,0.108002]
[1732035454923,0.107992,92599.0,92589.0,0.108003]
[1732035455143,0.6322073,92600.0,92590.0,0.108002]
[1732035455336,0.6322073,92600.0,92586.0,0.10906255]
[1732035455571,0.6322073,92600.0,92588.0,0.216009]
[1732035455775,0.107994,92598.0,92586.0,0.216015]
[1732035456110,0.7401983,92600.0,92591.0,0.108001]
[1732035456262,0.6322073,92600.0,92580.0,0.216029]
[1732035456480,0.6322073,92600.0,92590.0,0.108002]
[1732035456481,0.7401983,92600.0,92590.0,0.108002]
[1732035456700,0.6322073,92600.0,92590.0,0.216005]
[1732035456926,0.6322073,92600.0,92587.0,0.108005]
[1732035457141,0.215987,92598.0,92583.0,0.10801]
[1732035457370,0.6322073,92600.0,92584.0,0.108009]
[1732035457371,0.67664225,92600.0,92584.0,0.108009]
[1732035457601,0.67664225,92600.0,92581.0,0.10906255]
[1732035457808,0.215985,92599.0,92581.0,0.10906255]